Cogmind - Beta 9.6 @@@ ROGUE MODE // 2020.09.12 @ 12:03:18 Player: Hilbert Result: Destroyed by G-73 Enforcer with Phase Gun Performance ------------- Evolutions (8) 4000 Regions Visited (15) 3000 Robots Destroyed (76) 380 Value Destroyed (2117) 2117 Prototype IDs (1) 20 Alien Tech Used (0) 0 Bonus (15) 15 TOTAL SCORE: 9532 Bonus ------- High Alert Combat Kills 15 Cogmind --------- Core Integrity 0/1450 Matter 285/300 Energy 99/100 System Corruption 0% Temperature Cool (0) Movement Core (50) Location -2/Research Parts ------- > --- POWER (2) -------- (None) > --- PROPULSION (13) -- (None) > --- UTILITY (6) ------ (None) > --- WEAPON (2) ------- (None) > --- INVENTORY (4) ---- Quantum Reactor Improved Potential Cannon Peak State ------------ > --- POWER ------------ (None) > --- PROPULSION ------- Improved Medium Treads Improved Medium Treads Flexi-carbon Leg Flexi-carbon Leg Flexi-carbon Leg Armored Huge Wheel > --- UTILITY ---------- Advanced ECM Suite > --- WEAPON ----------- Ripper > --- INVENTORY -------- Medium Storage Unit Heavy Machine Gun Powered Hammer [Rating: 43] Favorites ----------- Power Light Deuterium Engine Engine Light Deuterium Engine Power Core Light Nuclear Core Propulsion Light Treads Treads Light Treads Leg Flexi-carbon Leg Wheel Armored Huge Wheel Hover Unit Improved Gravmag System Flight Unit Flight Unit Utility Medium Storage Unit Device Improved Sensor Array Storage Medium Storage Unit Protection Improved Light Armor Plating Weapon Light Assault Rifle Energy Gun Small Laser Energy Cannon Ion Cannon Ballistic Gun Light Assault Rifle Ballistic Cannon Light Cannon Launcher Mini Grenade Launcher Impact Weapon Powered Hammer Slashing Weapon Ripper Build | -11 -10 -9 -8 -8 -7 -7 -7 -6 -5 -4 -4 -4 -3 -3 -2 ------- Run | Scr Mat Mat Mat Sto Fac Low Low Fac Fac Fac Upp Upp Res Tes Res Slots Evolved 16 | . . 2 2 . 2 . . 2 2 2 . . 2 . 2 Power 1 | . . . . . . . . 1 . . . . . . . Propulsion 11 | . . . 1 . 2 . . 1 1 2 . . 2 . 2 Utility 4 | . . 2 1 . . . . . 1 . . . . . . Weapon . | . . . . . . . . . . . . . . . . Parts Attached 86 | 6 3 14 35 3 4 2 . 6 6 1 . . 2 2 2 Power 6 | 1 . 2 2 . 1 . . . . . . . . . . Engine 4 | 1 . 2 1 . . . . . . . . . . . . Core 2 | . . . 1 . 1 . . . . . . . . . . Reactor . | . . . . . . . . . . . . . . . . Propulsion 36 | 2 1 5 13 2 . . . 5 4 1 . . 1 1 1 Treads 26 | 1 1 5 11 2 . . . 2 . 1 . . 1 1 1 Leg 4 | . . . . . . . . 1 3 . . . . . . Wheel 2 | 1 . . . . . . . . 1 . . . . . . Hover 1 | . . . . . . . . 1 . . . . . . . Flight 3 | . . . 2 . . . . 1 . . . . . . . Utility 19 | 1 1 4 8 . 2 1 . 1 1 . . . . . . Device 6 | . . 1 2 . 1 . . 1 1 . . . . . . Storage 5 | 1 1 . 2 . . 1 . . . . . . . . . Processor . | . . . . . . . . . . . . . . . . Hackware . | . . . . . . . . . . . . . . . . Protection 8 | . . 3 4 . 1 . . . . . . . . . . Artifact . | . . . . . . . . . . . . . . . . Weapon 25 | 2 1 3 12 1 1 1 . . 1 . . . 1 1 1 Energy Gun 3 | . . . 3 . . . . . . . . . . . . Energy Cannon 2 | . . . 1 . . . . . . . . . . . 1 Ballistic Gun 10 | 2 1 2 3 . 1 . . . 1 . . . . . . Ballistic Cannon 3 | . . 1 2 . . . . . . . . . . . . Launcher 3 | . . . 3 . . . . . . . . . . . . Special Weapon . | . . . . . . . . . . . . . . . . Impact Weapon 2 | . . . . . . . . . . . . . 1 1 . Slashing Weapon 2 | . . . . 1 . 1 . . . . . . . . . Piercing Weapon . | . . . . . . . . . . . . . . . . Special Melee Weapon . | . . . . . . . . . . . . . . . . Unidentified Prototypes 1 | . . . . . . . . . . . . . . . 1 Parts Lost 48 | . 2 3 21 1 7 . . 1 3 2 2 . 3 2 1 Power 5 | . . 1 3 . 1 . . . . . . . . . . Propulsion 24 | . 1 1 7 . 3 . . 1 3 1 2 . 3 1 1 Utility 5 | . . . 4 1 . . . . . . . . . . . Weapon 14 | . 1 1 7 . 3 . . . . 1 . . . 1 . Highest Loss Streak 6 | . 2 2 6 1 5 . . 1 1 2 2 . 3 2 1 Average Slot Usage (%) 70 | . 100 96 95 69 57 2 7 19 34 30 19 15 8 8 2 Engine 5 | . 14 11 3 . . . . . . . . . . . . Core 1 | . . . 5 . 3 . . . . . . . . . . Treads 15 | . 20 21 22 15 13 . . 6 10 6 1 . 1 4 2 Leg 1 | . . . . . . . . 4 8 15 12 10 3 . . Wheel 1 | . 7 . . . . . . . 3 5 5 5 1 . . Device 5 | . . 7 14 9 . . . . . . . . . . . Storage 14 | . 28 22 18 18 15 . . . . . . . . . . Protection 6 | . . 11 11 9 10 . . . . . . . . . . Ballistic Gun 8 | . 28 12 6 . 4 . . . . . . . . . . Ballistic Cannon 3 | . . 8 6 . . . . . . . . . . . . Slashing Weapon 1 | . . . . 9 6 2 7 6 5 3 . . . . . Naked Turns 139 | . . . . . . 94 . . . . . . 5 4 36 Heaviest Build 36 | 11 20 28 36 22 31 3 3 3 3 3 . . 3 3 . Greatest Support 72 | 20 40 43 72 60 60 3 3 3 3 3 3 3 3 3 3 Greatest Overweight (x) 10 | . 1 1 1 1 10 . . . . . . . . . . Average Overweight (x) . | . . . . . . . . . . . . . . . . Largest Inventory Capacity 24 | 6 10 10 12 12 12 24 4 4 4 4 4 4 4 4 4 Average Capacity 8 | 5 9 10 11 12 12 4 4 4 4 4 4 4 4 4 4 Most Carried 12 | 4 10 10 12 5 5 4 4 4 4 4 3 3 3 4 4 Average Carried 6 | 2 8 9 9 4 3 3 4 3 3 3 3 3 2 3 3 Final Capacity 12 | 6 10 10 12 12 12 4 4 4 4 4 4 4 4 4 4 Final Carried 10 | 4 10 10 5 5 3 4 4 4 4 3 3 3 2 4 3 Class Distribution -------------------- 91% | Mutant 8% | Scavenger-Mutant Dominant Class ---------------- Mutant | -10/Materials Mutant | -9/Materials Mutant | -8/Materials Mutant | -8/Storage Mutant | -7/Factory Mutant | -7/Lower Caves Mutant | -7/Lower Caves Mutant | -6/Factory Mutant | -5/Factory Mutant | -4/Factory Mutant | -4/Upper Caves Mutant | -4/Upper Caves Mutant | -3/Research Mutant | -3/Testing Mutant | -2/Research Resources | -11 -10 -9 -8 -8 -7 -7 -7 -6 -5 -4 -4 -4 -3 -3 -2 ----------- Run | Scr Mat Mat Mat Sto Fac Low Low Fac Fac Fac Upp Upp Res Tes Res Matter Collected 1633 | 228 80 467 524 58 89 16 5 50 97 . . . . 19 . Remotely . | . . . . . . . . . . . . . . . . Salvage Created 2104 | . 214 652 768 69 120 . . 12 250 . . . . 19 . Parts 140 | . 9 45 56 10 6 . . . 14 . . . . . . Haulers Intercepted 2 | . . . 2 . . . . . . . . . . . . Recyclers Shooed 2 | . . . 1 . 1 . . . . . . . . . . Parts Field Recycled . | . . . . . . . . . . . . . . . . Retrieved Matter . | . . . . . . . . . . . . . . . . Parts Self-Destructed . | . . . . . . . . . . . . . . . . Prevented 5 | . . . . . . 1 . . . . 4 . . . . Kills | -11 -10 -9 -8 -8 -7 -7 -7 -6 -5 -4 -4 -4 -3 -3 -2 ------- Run | Scr Mat Mat Mat Sto Fac Low Low Fac Fac Fac Upp Upp Res Tes Res Combat Hostiles Destroyed 64 | . 7 21 25 4 3 . . . 4 . . . . . . Melee 5 | . . . 1 1 . . . . 3 . . . . . . Guns 30 | . 7 11 9 . 2 . . . 1 . . . . . . Cannons 18 | . . 10 8 . . . . . . . . . . . . AOE 11 | . . . 7 3 1 . . . . . . . . . . Classes Destroyed 13 | . 2 2 7 . 1 . . . 1 . . . . . . Worker 4 | . . 1 1 . . . . 1 . . . . . 1 . Builder 2 | . . . 2 . . . . . . . . . . . . Tunneler 1 | . . . 1 . . . . . . . . . . . . Hauler 2 | . . . 2 . . . . . . . . . . . . Recycler 1 | . . . 1 . . . . . . . . . . . . Operator 1 | . . . . . 1 . . . . . . . . . . Watcher 1 | . . . 1 . . . . . . . . . . . . Swarmer 26 | . 3 9 11 3 . . . . . . . . . . . Grunt 22 | . 4 8 7 . 3 . . . . . . . . . . Duelist 1 | . . . 1 . . . . . . . . . . . . Sentry 11 | . . 4 5 1 . . . . 1 . . . . . . Hunter 3 | . . . 1 . . . . . 2 . . . . . . Programmer 1 | . . . . . . . . . 1 . . . . . . Best Kill Streak 7 | . 3 6 7 3 4 . . 1 3 . . . . 1 . Combat Bots Only 6 | . 3 6 5 3 3 . . . 3 . . . . . . Max Kills in Single Turn 4 | . 1 1 4 1 1 . . 1 1 . . . . 1 . Gunslinging . | . . . . . . . . . . . . . . . . Exploded 3 | . . . 3 1 1 . . . . . . . . . . Melee 1 | . . . 1 1 . . . . 1 . . . . . . Uniques/NPCs Destroyed . | . . . . . . . . . . . . . . . . Combat | -11 -10 -9 -8 -8 -7 -7 -7 -6 -5 -4 -4 -4 -3 -3 -2 -------- Run | Scr Mat Mat Mat Sto Fac Low Low Fac Fac Fac Upp Upp Res Tes Res Damage Taken 9129 | . 453 839 2130 492 683 136 73 380 732 464 308 . 371 351 1717 Core 3125 | . 54 78 239 100 235 136 57 139 174 57 69 . 118 206 1463 Absorbed by Shields . | . . . . . . . . . . . . . . . . Core Remaining (%) 73 | 100 78 80 . 38 . . 38 83 82 . . 89 . 75 . Volleys Fired 176 | . 25 64 69 3 8 . . . 7 . . . . . . Largest 2 | . 2 2 2 1 1 . . . 1 . . . . . . Hottest 123 | . 40 55 123 30 30 . . . 28 . . . . . . Shots Fired 328 | . 50 126 134 3 8 . . . 7 . . . . . . Gun 207 | . 50 79 66 . 5 . . . 7 . . . . . . Cannon 106 | . . 47 59 . . . . . . . . . . . . Launcher 15 | . . . 9 3 3 . . . . . . . . . . Special . | . . . . . . . . . . . . . . . . Kinetic 277 | . 50 126 89 . 5 . . . 7 . . . . . . Thermal 36 | . . . 36 . . . . . . . . . . . . Explosive 15 | . . . 9 3 3 . . . . . . . . . . Electromagnetic . | . . . . . . . . . . . . . . . . Robot Hit Streak 28 | . 15 24 16 19 27 . . . 28 . . . . . . Robot Miss Streak 5 | . 4 5 2 . . . . . 1 . . . . . . Penetration Max . | . . . . . . . . . . . . . . . . Secondary Targets 2 | . 2 . . . . . . . . . . . . . . Max Gunslinging Chain 1 | . 1 . . . . . . . . . . . . . . Shots Hit Robots 239 | . 35 76 100 5 8 . . 1 11 . . . . 3 . Core Hits 135 | . 14 38 58 4 7 . . 1 7 1 . . . 5 . Critical Hits 4 | . . 2 1 . 1 . . . . . . . . . . Critical Kills 3 | . . 1 1 . 1 . . . . . . . . . . Critical Parts Destroyed 1 | . . 1 . . . . . . . . . . . . . Melee Attacks 77 | . . . . 25 . . 3 14 23 . . . 3 9 . Impact 12 | . . . . . . . . . . . . . 3 9 . Slashing 65 | . . . . 25 . . 3 14 23 . . . . . . Piercing . | . . . . . . . . . . . . . . . . Sneak Attacks 2 | . . . . . . . . 1 . . . . . 1 . Combat Hostiles . | . . . . . . . . . . . . . . . . Follow-up Attacks . | . . . . . . . . . . . . . . . . Damage Inflicted 4739 | . 286 933 2377 230 290 . . 110 320 1 . . . 192 . Guns 1446 | . 285 486 475 . 76 . . . 124 . . . . . . Cannons 1087 | . . 447 640 . . . . . . . . . . . . Explosions 1639 | . . . 1260 166 213 . . . . . . . . . . Melee 545 | . . . . 64 . . . 110 196 . . . . 175 . Ramming 22 | . 1 . 2 . 1 . . . . 1 . . . 17 . Kinetic 2131 | . 285 933 713 . 76 . . . 124 . . . . . . Thermal 402 | . . . 402 . . . . . . . . . . . . Explosive 1639 | . . . 1260 166 213 . . . . . . . . . . Electromagnetic . | . . . . . . . . . . . . . . . . Impact 175 | . . . . . . . . . . . . . . 175 . Slashing 370 | . . . . 64 . . . 110 196 . . . . . . Piercing . | . . . . . . . . . . . . . . . . Highest Corruption 4 | . . 1 . . . 3 3 4 1 . . . 2 2 . Average Corruption 1 | . . 1 . . . 2 3 3 1 . . . 1 2 . Corruption Purged . | . . . . . . . . . . . . . . . . Effects 6 | . . 3 . . . 1 . 1 . . . . . 1 . Message Errors 3 | . . 2 . . . . . . . . . . . 1 . Matter Fused 1 | . . . . . . . . 1 . . . . . . . Energy Discharges 1 | . . . . . . 1 . . . . . . . . . Targeting Errors 1 | . . 1 . . . . . . . . . . . . . Overload Shots . | . . . . . . . . . . . . . . . . Overflow Damage 124 | . . . 26 . 10 . . . . . . . . 88 . Projectiles . | . . . . . . . . . . . . . . . . Explosions 36 | . . . 26 . 10 . . . . . . . . . . Melee 88 | . . . . . . . . . . . . . . 88 . Knockbacks 6 | . . 2 3 . . . . . . . . . . 1 . Impact 1 | . . . . . . . . . . . . . . 1 . Kinetic 5 | . . 2 3 . . . . . . . . . . . . Secondary . | . . . . . . . . . . . . . . . . Self-Inflicted Damage 244 | . . . 150 61 26 . . . . . . . . 7 . Shots 11 | . . . 6 3 2 . . . . . . . . . . Rammed 9 | . 1 . . . 2 . . . . 1 . . . 5 . Targets Rammed 10 | . 1 . 1 . 2 . . . . 1 . . . 5 . Kicked . | . . . . . . . . . . . . . . . . Crushed 1 | . . . 1 . . . . . . . . . . . . Highest Temperature 333 | . 18 64 333 . . . . . . . . . . . . Average Temperature 48 | . 7 14 71 . . . . . . . . . . . . Received Heat Transfer 1722 | . 165 231 576 117 222 . . 90 108 9 33 . 18 108 45 Siege Activations . | . . . . . . . . . . . . . . . . Robots Corrupted . | . . . . . . . . . . . . . . . . Combat Hostiles . | . . . . . . . . . . . . . . . . Parts Fried . | . . . . . . . . . . . . . . . . Impact Corruptions 3 | . . . . . . . . . . . . . . 3 . Robots Melted . | . . . . . . . . . . . . . . . . Combat Hostiles . | . . . . . . . . . . . . . . . . Parts Melted 3 | . . . 3 . . . . . . . . . . . . Heat Transferred 791 | . . . 791 . . . . . . . . . . . . Parts Sabotaged . | . . . . . . . . . . . . . . . . Parts Stolen . | . . . . . . . . . . . . . . . . Parts Stripped . | . . . . . . . . . . . . . . . . Power Chain Reactions . | . . . . . . . . . . . . . . . . Missiles Intercepted . | . . . . . . . . . . . . . . . . Alert | -11 -10 -9 -8 -8 -7 -7 -7 -6 -5 -4 -4 -4 -3 -3 -2 ------- Run | Scr Mat Mat Mat Sto Fac Low Low Fac Fac Fac Upp Upp Res Tes Res Peak Influence 478 | . 130 275 478 193 205 . . 74 110 17 . . 17 48 125 Average Influence 116 | . 43 142 232 81 173 . . 38 28 10 . . . 30 34 Maximum Alert Level 2 | . . 1 2 . 1 . . . . . . . . . . Low Security (%) 83 | 100 100 80 50 100 97 . . 100 100 100 . . 100 100 100 Level 1 13 | . . 19 34 . 2 . . . . . . . . . . Level 2 3 | . . . 15 . . . . . . . . . . . . Level 3 . | . . . . . . . . . . . . . . . . Level 4 . | . . . . . . . . . . . . . . . . Level 5 . | . . . . . . . . . . . . . . . . High Security . | . . . . . . . . . . . . . . . . Max Security . | . . . . . . . . . . . . . . . . Squads Dispatched 13 | . 1 1 4 . 1 . . 1 2 2 . . . . 1 Investigation 3 | . . . 1 . . . . . . 2 . . . . . Extermination 1 | . . . . . . . . . 1 . . . . . . Reinforcement 8 | . 1 1 2 . 1 . . 1 1 . . . . . 1 Assault . | . . . . . . . . . . . . . . . . Garrison 1 | . . . 1 . . . . . . . . . . . . Intercept . | . . . . . . . . . . . . . . . . Construction Impeded 2 | . . . 2 . . . . . . . . . . . . Haulers Reinforced . | . . . . . . . . . . . . . . . . Stealth | -11 -10 -9 -8 -8 -7 -7 -7 -6 -5 -4 -4 -4 -3 -3 -2 --------- Run | Scr Mat Mat Mat Sto Fac Low Low Fac Fac Fac Upp Upp Res Tes Res Distress Signals 10 | . 2 1 4 2 . . . . . . . . . . 1 Communications Jammed . | . . . . . . . . . . . . . . . . Distress Signals . | . . . . . . . . . . . . . . . . Times Spotted 190 | . 10 29 37 10 5 1 3 21 14 9 7 . 8 7 29 Peak Tracking Total 25 | . 6 6 5 7 3 1 3 12 6 7 5 . 5 7 25 Tactical Retreats 13 | . . 1 . . . 1 . 3 3 1 1 . 2 . 1 Traps | -11 -10 -9 -8 -8 -7 -7 -7 -6 -5 -4 -4 -4 -3 -3 -2 ------- Run | Scr Mat Mat Mat Sto Fac Low Low Fac Fac Fac Upp Upp Res Tes Res Traps Triggered 10 | . . 2 2 . . . . 4 . 1 . . . 1 . Indirectly . | . . . . . . . . . . . . . . . . Trap Hack Attempts . | . . . . . . . . . . . . . . . . Triggered . | . . . . . . . . . . . . . . . . Disarmed . | . . . . . . . . . . . . . . . . Reprogrammed . | . . . . . . . . . . . . . . . . Reused . | . . . . . . . . . . . . . . . . Traps Extracted . | . . . . . . . . . . . . . . . . Installed . | . . . . . . . . . . . . . . . . Triggered 21 | . . . . . . 1 . . . . 20 . . . . Machines | -11 -10 -9 -8 -8 -7 -7 -7 -6 -5 -4 -4 -4 -3 -3 -2 ---------- Run | Scr Mat Mat Mat Sto Fac Low Low Fac Fac Fac Upp Upp Res Tes Res Machines Disabled 5 | . . 1 2 . 1 . . . . . . . . 1 . Max in Single Turn 1 | . . 1 1 . 1 . . . . . . . . 1 . Machines Sabotaged . | . . . . . . . . . . . . . . . . Garrisons Compromised . | . . . . . . . . . . . . . . . . Overloaded Fab Kills . | . . . . . . . . . . . . . . . . Fab Network Shutdowns . | . . . . . . . . . . . . . . . . Hacking | -11 -10 -9 -8 -8 -7 -7 -7 -6 -5 -4 -4 -4 -3 -3 -2 --------- Run | Scr Mat Mat Mat Sto Fac Low Low Fac Fac Fac Upp Upp Res Tes Res Machines Accessed 17 | . 2 2 5 3 . . . 2 1 1 . . . 1 . Terminals 17 | . 2 2 5 3 . . . 2 1 1 . . . 1 . Fabricators . | . . . . . . . . . . . . . . . . Repair Stations . | . . . . . . . . . . . . . . . . Recycling Units . | . . . . . . . . . . . . . . . . Scanalyzers . | . . . . . . . . . . . . . . . . Garrison Access . | . . . . . . . . . . . . . . . . Total Hacks 47 | . 4 6 11 8 . . . 5 9 3 . . . 1 . Successful 19 | . 1 1 6 2 . . . 2 5 1 . . . 1 . Failed 28 | . 3 5 5 6 . . . 3 4 2 . . . . . Catastrophic 2 | . . 1 . . . . . . 1 . . . . . . Database Lockouts . | . . . . . . . . . . . . . . . . Manual 41 | . 4 6 11 6 . . . 5 6 3 . . . . . Terminals 47 | . 4 6 11 8 . . . 5 9 3 . . . 1 . Fabricators . | . . . . . . . . . . . . . . . . Repair Stations . | . . . . . . . . . . . . . . . . Recycling Units . | . . . . . . . . . . . . . . . . Scanalyzers . | . . . . . . . . . . . . . . . . Garrison Access . | . . . . . . . . . . . . . . . . Terminal Hacks 10 | . . . 3 . . . . 1 4 1 . . . 1 . Record 2 | . . . . . . . . . 1 . . . . 1 . Emergency Access Points 1 | . . . 1 . . . . . . . . . . . . Alert Level 1 | . . . . . . . . . 1 . . . . . . Unreport Threat 5 | . . . 2 . . . . 1 1 1 . . . . . Recall Investigation 1 | . . . . . . . . . 1 . . . . . . Fabricator Hacks . | . . . . . . . . . . . . . . . . Repair Station Hacks . | . . . . . . . . . . . . . . . . Recycling Unit Hacks . | . . . . . . . . . . . . . . . . Scanalyzer . | . . . . . . . . . . . . . . . . Garrison Access Hacks . | . . . . . . . . . . . . . . . . Unauthorized Hacks 9 | . 1 1 3 2 . . . 1 1 . . . . . . Terminals 9 | . 1 1 3 2 . . . 1 1 . . . . . . Botnet 9 | . 1 1 3 2 . . . 1 1 . . . . . . Fabricators . | . . . . . . . . . . . . . . . . Repair Stations . | . . . . . . . . . . . . . . . . Recycling Units . | . . . . . . . . . . . . . . . . Scanalyzers . | . . . . . . . . . . . . . . . . Garrison Access . | . . . . . . . . . . . . . . . . Data Cores Recovered . | . . . . . . . . . . . . . . . . Used . | . . . . . . . . . . . . . . . . Hacking Detections 15 | . 2 2 4 3 . . . 1 1 1 . . . 1 . Full Trace Events 2 | . . . 1 . . . . . . 1 . . . . . Feedback Events . | . . . . . . . . . . . . . . . . Feedback Blocked . | . . . . . . . . . . . . . . . . Robot Schematics Acquired . | . . . . . . . . . . . . . . . . Robots Built . | . . . . . . . . . . . . . . . . Matter . | . . . . . . . . . . . . . . . . Time . | . . . . . . . . . . . . . . . . Total Robot Build Rating . | . . . . . . . . . . . . . . . . Part Schematics Acquired . | . . . . . . . . . . . . . . . . Parts Built . | . . . . . . . . . . . . . . . . Matter . | . . . . . . . . . . . . . . . . Time . | . . . . . . . . . . . . . . . . Total Part Build Rating . | . . . . . . . . . . . . . . . . Parts Repaired . | . . . . . . . . . . . . . . . . Time . | . . . . . . . . . . . . . . . . Parts Recycled . | . . . . . . . . . . . . . . . . Recycled Matter . | . . . . . . . . . . . . . . . . Retrieved Matter . | . . . . . . . . . . . . . . . . Retrieved Components . | . . . . . . . . . . . . . . . . Parts Scanalyzed . | . . . . . . . . . . . . . . . . Part Schematics Acquired . | . . . . . . . . . . . . . . . . Parts Damaged . | . . . . . . . . . . . . . . . . Bothacking | -11 -10 -9 -8 -8 -7 -7 -7 -6 -5 -4 -4 -4 -3 -3 -2 ------------ Run | Scr Mat Mat Mat Sto Fac Low Low Fac Fac Fac Upp Upp Res Tes Res Used RIF Installer . | . . . . . . . . . . . . . . . . Robots Hacked . | . . . . . . . . . . . . . . . . Non-combat . | . . . . . . . . . . . . . . . . Combat . | . . . . . . . . . . . . . . . . Robot Hacks Applied . | . . . . . . . . . . . . . . . . Relay Couplers Released . | . . . . . . . . . . . . . . . . Robots Rewired . | . . . . . . . . . . . . . . . . Allies Hacked . | . . . . . . . . . . . . . . . . Hacks Repelled . | . . . . . . . . . . . . . . . . Allies | -11 -10 -9 -8 -8 -7 -7 -7 -6 -5 -4 -4 -4 -3 -3 -2 -------- Run | Scr Mat Mat Mat Sto Fac Low Low Fac Fac Fac Upp Upp Res Tes Res Total Allies . | . . . . . . . . . . . . . . . . Largest Group . | . . . . . . . . . . . . . . . . Highest-Rated Group . | . . . . . . . . . . . . . . . . Highest-Rated Ally . | . . . . . . . . . . . . . . . . Total Orders . | . . . . . . . . . . . . . . . . Ally Attacks . | . . . . . . . . . . . . . . . . Total Damage . | . . . . . . . . . . . . . . . . Kills . | . . . . . . . . . . . . . . . . Allies Corrupted . | . . . . . . . . . . . . . . . . Allies Melted . | . . . . . . . . . . . . . . . . Intel | -11 -10 -9 -8 -8 -7 -7 -7 -6 -5 -4 -4 -4 -3 -3 -2 ------- Run | Scr Mat Mat Mat Sto Fac Low Low Fac Fac Fac Upp Upp Res Tes Res Robot Analysis Total . | . . . . . . . . . . . . . . . . Derelict Logs Recovered 2 | . . . . . . . . . . . 2 . . . . Drone Launches . | . . . . . . . . . . . . . . . . Drone Recoveries . | . . . . . . . . . . . . . . . . Exploration | -11 -10 -9 -8 -8 -7 -7 -7 -6 -5 -4 -4 -4 -3 -3 -2 ------------- Run | Scr Mat Mat Mat Sto Fac Low Low Fac Fac Fac Upp Upp Res Tes Res Turns Passed 4700 | 62 647 1045 1051 338 148 152 27 340 372 54 158 9 87 86 124 Spaces Moved 3992 | 50 385 498 450 149 69 292 35 574 554 101 316 17 155 112 235 Core 2395 | 2 . . . . 2 292 35 574 554 101 316 17 155 112 235 Treads 1376 | 1 211 498 450 149 67 . . . . . . . . . . Legs . | . . . . . . . . . . . . . . . . Wheels 221 | 47 174 . . . . . . . . . . . . . . Hover . | . . . . . . . . . . . . . . . . Flight . | . . . . . . . . . . . . . . . . Fastest Speed 50 | 50 100 160 160 163 163 50 50 50 50 50 50 50 50 50 50 Average Speed 92 | 99 137 160 162 178 177 50 50 50 50 50 50 50 50 50 50 Slowest Speed 550 | 160 160 180 190 190 550 50 50 50 50 50 50 50 50 50 50 Overloaded Moves . | . . . . . . . . . . . . . . . . Propulsion Burnouts . | . . . . . . . . . . . . . . . . Robots Hopped . | . . . . . . . . . . . . . . . . Cave-ins Triggered . | . . . . . . . . . . . . . . . . Exploration Rate (%) 23 | 3 55 40 47 41 2 54 5 21 9 5 55 10 7 14 14 Regions Visited 15 Branch Regions 6 Pre-discovered Areas 1 | . . . . . . . . . . . 1 . . . . Known Exits Taken 2 | . . . . . . . . . . . . . 1 1 . Unknown Exits Taken 13 | 1 1 1 1 1 1 1 1 1 1 1 1 1 . . . Scrap Searched 4 | . . . . . . 2 . . . . 1 1 . . . Spaces Dug 37 | . . . . 7 . . 2 12 13 . . . 1 2 . Terrain Destroyed 143 | . . . 64 26 23 . 2 12 13 . . . 1 2 . Melee 37 | . . . . 7 . . 2 12 13 . . . 1 2 . Projectile 3 | . . . 3 . . . . . . . . . . . . AOE 103 | . . . 61 19 23 . . . . . . . . . . Actions | -11 -10 -9 -8 -8 -7 -7 -7 -6 -5 -4 -4 -4 -3 -3 -2 --------- Run | Scr Mat Mat Mat Sto Fac Low Low Fac Fac Fac Upp Upp Res Tes Res Total 4557 | 59 461 631 633 180 82 298 39 604 606 103 315 16 159 129 242 Wait 171 | . 40 40 72 . . . 2 4 11 . . . . 1 1 Move 3978 | 49 384 497 449 148 69 291 34 573 553 100 315 16 154 111 235 Hop . | . . . . . . . . . . . . . . . . Pick Up 33 | 4 8 6 5 1 . 2 . 3 2 . . . . 1 1 Fast Attach 41 | 6 1 4 9 2 2 1 . 6 5 1 . . 1 2 1 Attach 26 | . 2 3 14 1 2 1 . . 1 . . . 1 . 1 Detach 4 | . . . . . . 1 . 1 1 . . . . . 1 Swap 19 | . . 7 12 . . . . . . . . . . . . Drop 23 | . . 10 2 . . 2 . 3 3 1 . . . . 2 Fire 176 | . 25 64 69 3 8 . . . 7 . . . . . . Melee 77 | . . . . 25 . . 3 14 23 . . . 3 9 . Ram 7 | . . . . . 1 . . . . 1 . . . 5 . Kick . | . . . . . . . . . . . . . . . . Crush 2 | . 1 . 1 . . . . . . . . . . . . Escape Stasis . | . . . . . . . . . . . . . . . . Rewire . | . . . . . . . . . . . . . . . . Trap . | . . . . . . . . . . . . . . . . Miscellaneous . | . . . . . . . . . . . . . . . . Route ------- -11/Scrapyard -10/Materials -9/Materials (discovered 2 exits: *Mat x2) -8/Materials (discovered 3 exits: *Fac / *Sto x2) -8/Storage -7/Factory -7/Lower Caves -7/Lower Caves -6/Factory -5/Factory -4/Factory -4/Upper Caves -4/Upper Caves -3/Research (discovered 3 exits: Res / Arm / *Tes) -3/Testing -2/Research (discovered 1 exit: [*Acc]) History --------- Turn | Location | Event 43 | -11/Scrapyard | Discovered new exit (range 15) 63 | -11/Scrapyard | Entered Materials 317 | -10/Materials | Build established: Mutant 644 | -10/Materials | Discovered new exit (range 8) 710 | -10/Materials | Entered another Materials area 710 | -9/Materials | Evolved 2 slots: Utility x2 1205 | -9/Materials | Discovered new exit (range 7) 1700 | -9/Materials | Discovered new exit (range 15) 1755 | -9/Materials | Entered another Materials area 1755 | -8/Materials | Evolved 2 slots: Propulsion x1, Utility x1 2198 | -8/Materials | Lost 3 parts (2n1w) 2243 | -8/Materials | Discovered new exit (range 15) 2351 | -8/Materials | Build established: Scavenger-Mutant 2472 | -8/Materials | Discovered new exit (range 6) 2660 | -8/Materials | Discovered new exit (range 16) 2670 | -8/Materials | Lost 3 parts (1p1n1w) 2704 | -8/Materials | Build established: Mutant 2724 | -8/Materials | Garrison activated, responded to threat 2757 | -8/Materials | Lost 3 parts (1n1u1w) 2806 | -8/Materials | Entered Storage 2834 | -8/Storage | Lost 6 parts (1p1n1u3w) 3077 | -8/Storage | Core integrity fell below 50% 3119 | -8/Storage | Discovered new exit (range 16) 3144 | -8/Storage | Entered Factory 3144 | -7/Factory | Evolved 2 slots: Propulsion x2 3200 | -7/Factory | Lost 3 parts (1n1u1w) 3256 | -7/Factory | Discovered new exit (range 13) 3292 | -7/Factory | Entered Lower Caves 3292 | -7/Lower Caves | Released all parts (5) 3323 | -7/Lower Caves | Lost 5 parts (1p2n2w) 3374 | -7/Lower Caves | Core integrity fell below 50% 3441 | -7/Lower Caves | Discovered new exit (range 6) 3444 | -7/Lower Caves | Entered another Lower Caves area 3469 | -7/Lower Caves | Discovered new exit (range 4) 3471 | -7/Lower Caves | Entered Factory 3471 | -6/Factory | Evolved 2 slots: Power x1, Propulsion x1 3804 | -6/Factory | Discovered new exit (range 16) 3811 | -6/Factory | Entered another Factory area 3811 | -5/Factory | Evolved 2 slots: Propulsion x1, Utility x1 4175 | -5/Factory | Discovered new exit (range 16) 4183 | -5/Factory | Entered another Factory area 4183 | -4/Factory | Evolved 2 slots: Propulsion x2 4229 | -4/Factory | Discovered new exit (range 16) 4237 | -4/Factory | Entered Upper Caves 4363 | -4/Upper Caves | Learned location of Testing (-3) 4383 | -4/Upper Caves | Discovered new exit (range 6) 4385 | -4/Upper Caves | Learned 8 Research zone layouts 4395 | -4/Upper Caves | Entered another Upper Caves area 4397 | -4/Upper Caves | Discovered new exit (range 15) 4404 | -4/Upper Caves | Entered Research 4404 | -3/Research | Evolved 2 slots: Propulsion x2 4405 | -3/Research | Identified exit to Testing 4405 | -3/Research | Identified exit to Research 4405 | -3/Research | Identified exit to Armory 4486 | -3/Research | Lost 3 parts (3n) 4491 | -3/Research | Entered Testing 4498 | -3/Testing | Found Prototype Energy Cannon 4571 | -3/Testing | Discovered exit to Research (range 11) 4577 | -3/Testing | Entered Research 4577 | -2/Research | Evolved 2 slots: Propulsion x2 4607 | -2/Research | Identified Imp. Potential Cannon 4667 | -2/Research | Spotted B-90 Cyclops 4695 | -2/Research | Core integrity fell below 50% 4695 | -2/Research | Spotted B-90 Cyclops 4697 | -2/Research | Discovered new exit (range 16) 4699 | -2/Research | Core integrity fell below 20% 4701 | -2/Research | Destroyed by G-73 Enforcer with Phase Gun Last Messages --------------- 04667_ Slug penetrates Wall. 04667_ Fabricator disabled. 04669_ K-01 Serf collects debris. 04675_ Penetrated by Slug. 04675_ Adv. Medium Treads destroyed. 04678_ Penetrated by Slug. 04678_ S-43 Plague destroyed. 04681_ O-32 Director sends out distress signal. 04681_ O-32 Director: "IFF HANDSHAKE FAILED. SECURING TERMINAL." 04687_ ALERT: Hostiles spotted, dispatching reinforcements to Terminal R019. 04690_ Slug penetrates Wall. 04690_ Slug penetrates Catalytron. 04690_ Slug penetrates Wall. 04690_ Penetrated by Slug. 04694_ Slug penetrates Catalytron. 04694_ Penetrated by Slug. 04697_ EXIT=FOUND 04697_ Slug penetrates Wall. 04697_ Penetrated by Slug. Map ----- +----------------------------------------------------+ | ??????????????????????????????????????? | | ??????????????????????????????????????? | | ??????????????????????????????????????? | | ??????????????????????????????????????? | | ??????????????????????????????????????? | | ??????????????????????????????????????? | | ??????????????????????????????????????? | | ??????????????????????????????????????? | | ??????????????????????????????????????? | | ??????????????????????????????????????? | | ??????????????????????????????????????? | | ??????????????????????????????????????? | | ??????????????????????????????????????? | | ?????????????#######??????????????????? | | ????????????? #??????????????????? | | ????????????? ##?????????????????? | | ????????????? ?????????????????? | | ????????????? < ??????????????????? | | ????????????? #??????????????????? | | ????????????? ???????????????????? | | ?????????????# #???????????????????? | | ?????????????# #??????????#+##+##### | | ?????????????# gg########???# # | | ?????????????# g g #???# # | | ?????????????# #???# # | | ?????????????#@ ##### # | | ???????????### ]]! h # | | ???????????# ]]! h # | | ???????????# ][ # | | ???????????# """ # | | ???????????# """ # | | ???????????# """ # | | ???????????# #?? | | ???????????# #???? | | ???????????# ##### | | ???????????# R | | ???????????# ########+##### | | ???????????# #????? ??# | | ???????????# ""#????# ## | | ???????????# = ""#????# ## | | ???????????# ""#????# ## | | ???????????# T#????# ## | | ???????????# === ""#????# ## | | ???????????# === ""#????######### | | ???????????# == ""#????????????# | | ?????????? ?????????????# | | ?????????? ??????????????# | | ?????????? ?????????????# | | ???????????? ### ??????????????# | | ?????????????? ??? #?????????????# | +----------------------------------------------------+ Best States ------------- Heat Dissipation 49 Energy Generation 15 Energy Capacity 250 Matter Stores 300 Matter Capacity 300 Sight Range 16 Robot Scan Range 13 Terrain Scan Density 10 Additional Mass Support 9 Armor Coverage 300 Utility Shielding 66 Evasion (%) 50 Recoil Reduction 3 Item Schematics ----------------- None Robot Schematics ------------------ None Fabricated ------------ Nothing Alien Tech Used ----------------- None Achievements -------------- None Challenges ------------ None Game ------ Seed MasterMetafiberGenerator Manual? 0 Play Time 00:59:21 Cumulative 31.4 hours Start 2020.09.12 @ 11:03:32 End 2020.09.12 @ 12:03:18 Sessions 1 Manual Loads 0 Difficulty Rogue Special Mode None Game No. 66 Rogue 66 Adventurer 0 Explorer 0 Win Type - Total 0 Types 0/0/0/0/0/0/0 Lore% 31 Gallery% 35 Achievement% 27 Wizard Run 0 Options --------- ASCII 0 Keyboard 1 Movement Vi Keybinds 0 Fullscreen 1 Font 18/SmallcapsGlow Map View 76x50 Tactical HUD 1 Map Filters NONE Filters NONE Steam 1 RUN: 604af656-efaf-4fa9-baac-a56f122ab435